[Event "Titled Tuesday Blitz May 11 2021"]
[White "Visakh N R"]
[Black "Matinian, Nikita"]
[WhiteFideId "25012223"]
[BlackFideId "24129100"]
[WhiteElo "2428"]
[BlackElo "2410"]
[Result "1-0"]
[Round "03"]
[TimeControl "180+1"]
[Date "2021.05.11"]
[WhiteClock "0:00:04"]
[BlackClock "0:00:02"]

1. e4 {[%clk 0:03:00]}  c5 {[%clk 0:03:00]} 2. Nf3 {[%clk 0:02:56]}  d6 {[%clk 0:03:00]} 3. Bb5+ {[%clk 0:02:50]}  Nd7 {[%clk 0:03:00]} 4. d4 {[%clk 0:02:47]}  cxd4 {[%clk 0:02:59]} 5. Qxd4 {[%clk 0:02:47]}  a6 {[%clk 0:02:59]} 6. Bxd7+ {[%clk 0:02:45]}  Bxd7 {[%clk 0:03:00]} 7. c4 {[%clk 0:02:45]}  Nf6 {[%clk 0:02:57]} 8. O-O {[%clk 0:02:44]}  g6 {[%clk 0:02:56]} 9. Nc3 {[%clk 0:02:42]}  Bg7 {[%clk 0:02:56]} 10. h3 {[%clk 0:02:39]}  O-O {[%clk 0:02:56]} 11. Qd3 {[%clk 0:02:39]}  b5 {[%clk 0:02:56]} 12. cxb5 {[%clk 0:02:35]}  axb5 {[%clk 0:02:56]} 13. e5 {[%clk 0:02:17]}  dxe5 {[%clk 0:02:18]} 14. Nxe5 {[%clk 0:02:15]}  b4 {[%clk 0:02:18]} 15. Nxd7 {[%clk 0:02:13]}  bxc3 {[%clk 0:02:17]} 16. Nxf6+ {[%clk 0:02:10]}  Bxf6 {[%clk 0:02:18]} 17. Qxd8 {[%clk 0:02:10]}  Rfxd8 {[%clk 0:02:19]} 18. bxc3 {[%clk 0:02:07]}  Bxc3 {[%clk 0:02:19]} 19. Rb1 {[%clk 0:02:07]}  Rxa2 {[%clk 0:02:19]} 20. Rb7 {[%clk 0:02:01]}  Kf8 {[%clk 0:01:56]} 21. Be3 {[%clk 0:01:47]}  f5 {[%clk 0:01:43]} 22. Bg5 {[%clk 0:01:43]}  Re2 {[%clk 0:01:37]} 23. Rc1 {[%clk 0:01:42]}  Bd4 {[%clk 0:01:12]} 24. Bh4 {[%clk 0:01:37]}  Kf7 {[%clk 0:01:08]} 25. Rcc7 {[%clk 0:01:27]}  Bf6 {[%clk 0:01:05]} 26. Bxf6 {[%clk 0:01:26]}  Kxf6 {[%clk 0:01:06]} 27. Rc6+ {[%clk 0:01:21]}  Kf7 {[%clk 0:01:06]} 28. Rc1 {[%clk 0:01:14]}  Rdd2 {[%clk 0:01:05]} 29. Rf1 {[%clk 0:01:15]}  Kf6 {[%clk 0:01:02]} 30. Rbb1 {[%clk 0:01:15]}  h6 {[%clk 0:01:02]} 31. Rbe1 {[%clk 0:01:14]}  e5 {[%clk 0:00:58]} 32. Rxe2 {[%clk 0:01:13]}  Rxe2 {[%clk 0:00:59]} 33. Ra1 {[%clk 0:01:08]}  f4 {[%clk 0:00:58]} 34. f3 {[%clk 0:01:02]}  Kf5 {[%clk 0:00:55]} 35. Ra8 {[%clk 0:01:00]}  Re1+ {[%clk 0:00:52]} 36. Kh2 {[%clk 0:00:57]}  g5 {[%clk 0:00:38]} 37. Ra6 {[%clk 0:00:50]}  h5 {[%clk 0:00:38]} 38. Rh6 {[%clk 0:00:50]}  h4 {[%clk 0:00:38]} 39. Rh8 {[%clk 0:00:49]}  e4 {[%clk 0:00:37]} 40. Rf8+ {[%clk 0:00:49]}  Ke5 {[%clk 0:00:37]} 41. fxe4 {[%clk 0:00:43]}  Rxe4 {[%clk 0:00:38]} 42. Kg1 {[%clk 0:00:39]}  Kd4 {[%clk 0:00:28]} 43. Kf2 {[%clk 0:00:37]}  Re5 {[%clk 0:00:27]} 44. Kf3 {[%clk 0:00:37]}  Re3+ {[%clk 0:00:27]} 45. Kf2 {[%clk 0:00:36]}  Rg3 {[%clk 0:00:24]} 46. Re8 {[%clk 0:00:36]}  Re3 {[%clk 0:00:20]} 47. Rg8 {[%clk 0:00:30]}  Re5 {[%clk 0:00:19]} 48. Kf3 {[%clk 0:00:23]}  Kc3 {[%clk 0:00:18]} 49. Kg4 {[%clk 0:00:17]}  Re2 {[%clk 0:00:18]} 50. Rxg5 {[%clk 0:00:16]}  Rxg2+ {[%clk 0:00:18]} 51. Kxf4 {[%clk 0:00:16]}  Rh2 {[%clk 0:00:17]} 52. Kg4 {[%clk 0:00:15]}  Kd4 {[%clk 0:00:17]} 53. Rf5 {[%clk 0:00:15]}  Ke4 {[%clk 0:00:16]} 54. Rf1 {[%clk 0:00:15]}  Rg2+ {[%clk 0:00:15]} 55. Kxh4 {[%clk 0:00:15]}  Ke5 {[%clk 0:00:16]} 56. Kh5 {[%clk 0:00:15]}  Ke6 {[%clk 0:00:16]} 57. Kh6 {[%clk 0:00:15]}  Ke7 {[%clk 0:00:16]} 58. h4 {[%clk 0:00:15]}  Rg3 {[%clk 0:00:16]} 59. Rf5 {[%clk 0:00:14]}  Rg2 {[%clk 0:00:16]} 60. Rg5 {[%clk 0:00:12]}  Rh2 {[%clk 0:00:16]} 61. Rg4 {[%clk 0:00:10]}  Kf7 {[%clk 0:00:16]} 62. Kh7 {[%clk 0:00:11]}  Rh3 {[%clk 0:00:16]} 63. Rf4+ {[%clk 0:00:11]}  Ke7 {[%clk 0:00:17]} 64. Kh6 {[%clk 0:00:09]}  Rh1 {[%clk 0:00:16]} 65. h5 {[%clk 0:00:08]}  Rh2 {[%clk 0:00:16]} 66. Rg4 {[%clk 0:00:08]}  Kf8 {[%clk 0:00:15]} 67. Rg5 {[%clk 0:00:06]}  Ra2 {[%clk 0:00:13]} 68. Kh7 {[%clk 0:00:06]}  Ra7+ {[%clk 0:00:13]} 69. Kh8 {[%clk 0:00:06]}  Ra1 {[%clk 0:00:12]} 70. Rf5+ {[%clk 0:00:04]}  Ke7 {[%clk 0:00:12]} 71. Rg5 {[%clk 0:00:04]}  Rh1 {[%clk 0:00:12]} 72. Kg7 {[%clk 0:00:03]}  Rf1 {[%clk 0:00:07]} 73. h6 {[%clk 0:00:04]}  Rf7+ {[%clk 0:00:08]} 74. Kg8 {[%clk 0:00:04]}  Rf8+ {[%clk 0:00:08]} 75. Kh7 {[%clk 0:00:04]}  Rf7+ {[%clk 0:00:09]} 76. Rg7 {[%clk 0:00:03]}  Kf6 {[%clk 0:00:07]} 77. Kg8 {[%clk 0:00:03]}  Rxg7+ {[%clk 0:00:02]} 78. hxg7 {[%clk 0:00:04]} 1-0


[Site "https://www.chess.com"]

[Event "Titled Tuesday Blitz May 11 2021"]
[White "Zhigalko, Sergei"]
[Black "Rud_Makarian"]
[WhiteFideId "13502956"]
[WhiteElo "2662"]
[BlackElo "2701"]
[Result "1-0"]
[Round "03"]
[TimeControl "180+1"]
[Date "2021.05.11"]
[WhiteClock "0:00:15"]
[BlackClock "0:00:54"]

1. e4 {[%clk 0:03:00]}  e5 {[%clk 0:02:58]} 2. Nf3 {[%clk 0:03:01]}  Nc6 {[%clk 0:02:59]} 3. Bc4 {[%clk 0:03:01]}  Nf6 {[%clk 0:02:59]} 4. d3 {[%clk 0:02:59]}  Bc5 {[%clk 0:02:58]} 5. O-O {[%clk 0:02:58]}  d6 {[%clk 0:02:58]} 6. Nbd2 {[%clk 0:02:58]}  h6 {[%clk 0:02:58]} 7. c3 {[%clk 0:02:57]}  a5 {[%clk 0:02:58]} 8. Re1 {[%clk 0:02:48]}  Ba7 {[%clk 0:02:57]} 9. Nf1 {[%clk 0:02:47]}  O-O {[%clk 0:02:56]} 10. Ng3 {[%clk 0:02:43]}  Be6 {[%clk 0:02:56]} 11. Bb5 {[%clk 0:02:42]}  Ne7 {[%clk 0:02:56]} 12. Nh4 {[%clk 0:02:41]}  c6 {[%clk 0:02:46]} 13. Ba4 {[%clk 0:02:40]}  b5 {[%clk 0:02:46]} 14. Bc2 {[%clk 0:02:40]}  Bg4 {[%clk 0:02:26]} 15. Qd2 {[%clk 0:02:36]}  Ng6 {[%clk 0:02:10]} 16. Nhf5 {[%clk 0:02:29]}  Nh5 {[%clk 0:02:08]} 17. Nxh5 {[%clk 0:02:25]}  Bxh5 {[%clk 0:02:09]} 18. Nxg7 {[%clk 0:02:23]}  Bg4 {[%clk 0:01:45]} 19. Qxh6 {[%clk 0:01:52]}  Qf6 {[%clk 0:01:28]} 20. Nf5 {[%clk 0:01:47]}  Bxf5 {[%clk 0:01:28]} 21. Bg5 {[%clk 0:01:35]}  Qe6 {[%clk 0:01:28]} 22. exf5 {[%clk 0:01:21]}  Qxf5 {[%clk 0:01:29]} 23. d4 {[%clk 0:01:05]}  Qe6 {[%clk 0:01:13]} 24. Re3 {[%clk 0:00:51]}  f5 {[%clk 0:01:05]} 25. Rxe5 {[%clk 0:00:25]}  Qf7 {[%clk 0:00:53]} 26. Rxf5 {[%clk 0:00:20]}  Qg7 {[%clk 0:00:53]} 27. Rxf8+ {[%clk 0:00:18]}  Rxf8 {[%clk 0:00:54]} 28. Qxg6 {[%clk 0:00:15]} 1-0


[Site "https://www.chess.com"]

[Event "Titled Tuesday Blitz May 11 2021"]
[White "dropstoneDP"]
[Black "Gusarov, Grigory"]
[BlackFideId "24102172"]
[WhiteElo "2891"]
[BlackElo "2241"]
[Result "1-0"]
[Round "03"]
[TimeControl "180+1"]
[Date "2021.05.11"]
[WhiteClock "0:02:30"]
[BlackClock "0:01:40"]

1. e4 {[%clk 0:03:00]}  c6 {[%clk 0:02:59]} 2. d4 {[%clk 0:03:00]}  d5 {[%clk 0:02:59]} 3. f3 {[%clk 0:02:56]}  dxe4 {[%clk 0:02:56]} 4. fxe4 {[%clk 0:02:57]}  e5 {[%clk 0:02:57]} 5. Nf3 {[%clk 0:02:57]}  Bg4 {[%clk 0:02:55]} 6. c3 {[%clk 0:02:56]}  Nd7 {[%clk 0:02:53]} 7. Bd3 {[%clk 0:02:55]}  Bd6 {[%clk 0:02:53]} 8. O-O {[%clk 0:02:55]}  Ngf6 {[%clk 0:02:53]} 9. Bg5 {[%clk 0:02:54]}  O-O {[%clk 0:02:52]} 10. Nbd2 {[%clk 0:02:51]}  b5 {[%clk 0:02:51]} 11. Qe1 {[%clk 0:02:50]}  Qb6 {[%clk 0:02:32]} 12. Kh1 {[%clk 0:02:46]}  Qc7 {[%clk 0:02:18]} 13. Qh4 {[%clk 0:02:42]}  Bxf3 {[%clk 0:02:16]} 14. Rxf3 {[%clk 0:02:35]}  h6 {[%clk 0:01:52]} 15. Bxh6 {[%clk 0:02:34]}  gxh6 {[%clk 0:01:52]} 16. Qxh6 {[%clk 0:02:31]}  Nh7 {[%clk 0:01:40]} 17. Rg3+ {[%clk 0:02:30]} 1-0


[Site "https://www.chess.com"]

[Event "Titled Tuesday Blitz May 11 2021"]
[White "Dang, Hoang Son"]
[Black "Le, Tuan Minh"]
[WhiteFideId "12402435"]
[BlackFideId "12401153"]
[WhiteElo "2248"]
[BlackElo "2450"]
[Result "0-1"]
[Round "04"]
[TimeControl "180+1"]
[Date "2021.05.11"]
[WhiteClock "0:00:20"]
[BlackClock "0:00:18"]

1. d4 {[%clk 0:03:00]}  Nf6 {[%clk 0:02:56]} 2. c4 {[%clk 0:03:00]}  Nc6 {[%clk 0:02:56]} 3. d5 {[%clk 0:02:59]}  Ne5 {[%clk 0:02:57]} 4. Qc2 {[%clk 0:02:59]}  e6 {[%clk 0:02:55]} 5. dxe6 {[%clk 0:02:59]}  dxe6 {[%clk 0:02:54]} 6. Nf3 {[%clk 0:02:59]}  Ng6 {[%clk 0:02:33]} 7. e3 {[%clk 0:02:51]}  b6 {[%clk 0:02:30]} 8. Nc3 {[%clk 0:02:34]}  Bb7 {[%clk 0:02:30]} 9. Bd2 {[%clk 0:02:32]}  Bd6 {[%clk 0:02:24]} 10. Bd3 {[%clk 0:02:26]}  Qe7 {[%clk 0:02:08]} 11. a3 {[%clk 0:02:22]}  O-O {[%clk 0:02:07]} 12. O-O-O {[%clk 0:02:17]}  Rfd8 {[%clk 0:02:04]} 13. Kb1 {[%clk 0:02:07]}  Ne5 {[%clk 0:01:52]} 14. Be2 {[%clk 0:01:54]}  a6 {[%clk 0:01:38]} 15. Bc1 {[%clk 0:01:45]}  b5 {[%clk 0:01:34]} 16. c5 {[%clk 0:01:45]}  Bxc5 {[%clk 0:01:08]} 17. Nxe5 {[%clk 0:01:44]}  b4 {[%clk 0:01:02]} 18. axb4 {[%clk 0:01:31]}  Bxb4 {[%clk 0:01:03]} 19. Bf3 {[%clk 0:01:30]}  c5 {[%clk 0:00:42]} 20. Na2 {[%clk 0:01:17]}  Nd5 {[%clk 0:00:39]} 21. Nxb4 {[%clk 0:01:05]}  Nxb4 {[%clk 0:00:32]} 22. Qc4 {[%clk 0:00:55]}  Bd5 {[%clk 0:00:33]} 23. Bxd5 {[%clk 0:00:55]}  exd5 {[%clk 0:00:34]} 24. Qf4 {[%clk 0:00:55]}  d4 {[%clk 0:00:19]} 25. exd4 {[%clk 0:00:52]}  Qe6 {[%clk 0:00:18]} 26. d5 {[%clk 0:00:49]}  Nxd5 {[%clk 0:00:18]} 27. Qe4 {[%clk 0:00:20]}  Nb4 {[%clk 0:00:18]} 0-1


[Site "https://www.chess.com"]

[Event "Titled Tuesday Blitz May 11 2021"]
[White "Dubov, Daniil"]
[Black "Quintiliano Pinto, Renato R."]
[WhiteFideId "24126055"]
[BlackFideId "2117568"]
[WhiteElo "2722"]
[BlackElo "2439"]
[Result "1-0"]
[Round "04"]
[TimeControl "180+1"]
[Date "2021.05.11"]
[WhiteClock "0:01:54"]
[BlackClock "0:00:02"]

1. d4 {[%clk 0:03:00]}  d5 {[%clk 0:02:58]} 2. c4 {[%clk 0:03:00]}  c6 {[%clk 0:02:59]} 3. Nf3 {[%clk 0:03:00]}  Nf6 {[%clk 0:02:59]} 4. Nc3 {[%clk 0:03:00]}  dxc4 {[%clk 0:02:57]} 5. e4 {[%clk 0:02:59]}  b5 {[%clk 0:02:57]} 6. Be2 {[%clk 0:02:59]}  e6 {[%clk 0:02:48]} 7. O-O {[%clk 0:02:58]}  Bb7 {[%clk 0:02:32]} 8. Rb1 {[%clk 0:02:55]}  b4 {[%clk 0:02:08]} 9. e5 {[%clk 0:02:54]}  Nd5 {[%clk 0:02:06]} 10. Ne4 {[%clk 0:02:53]}  Nd7 {[%clk 0:02:01]} 11. Bxc4 {[%clk 0:02:51]}  c5 {[%clk 0:01:56]} 12. Bg5 {[%clk 0:02:45]}  Qb6 {[%clk 0:01:55]} 13. Re1 {[%clk 0:02:43]}  h6 {[%clk 0:01:52]} 14. Bh4 {[%clk 0:02:42]}  cxd4 {[%clk 0:01:49]} 15. Nxd4 {[%clk 0:02:40]}  Bc5 {[%clk 0:01:05]} 16. Nf5 {[%clk 0:02:25]}  O-O {[%clk 0:00:10]} 17. Nxh6+ {[%clk 0:02:12]}  gxh6 {[%clk 0:00:11]} 18. Qg4+ {[%clk 0:02:12]}  Kh8 {[%clk 0:00:10]} 19. Qh5 {[%clk 0:02:12]}  f5 {[%clk 0:00:03]} 20. Qxh6+ {[%clk 0:01:55]}  Kg8 {[%clk 0:00:02]} 21. Qg6+ {[%clk 0:01:56]}  Kh8 {[%clk 0:00:02]} 22. Ng5 {[%clk 0:01:54]} 1-0


[Site "https://www.chess.com"]

[Event "Titled Tuesday Blitz May 11 2021"]
[White "Gunina, Valentina"]
[Black "Mukhutdinov, Tigran"]
[WhiteFideId "4167570"]
[BlackFideId "34108570"]
[WhiteElo "2399"]
[BlackElo "2154"]
[Result "1-0"]
[Round "04"]
[TimeControl "180+1"]
[Date "2021.05.11"]
[WhiteClock "0:00:14"]
[BlackClock "0:00:15"]

1. d4 {[%clk 0:03:00]}  Nf6 {[%clk 0:02:59]} 2. c4 {[%clk 0:03:00]}  g6 {[%clk 0:02:59]} 3. Nc3 {[%clk 0:02:59]}  d5 {[%clk 0:02:58]} 4. cxd5 {[%clk 0:02:59]}  Nxd5 {[%clk 0:02:59]} 5. e4 {[%clk 0:02:59]}  Nxc3 {[%clk 0:02:59]} 6. bxc3 {[%clk 0:02:59]}  Bg7 {[%clk 0:03:00]} 7. Bc4 {[%clk 0:03:00]}  c5 {[%clk 0:03:00]} 8. Ne2 {[%clk 0:03:00]}  Nc6 {[%clk 0:03:00]} 9. Be3 {[%clk 0:02:59]}  O-O {[%clk 0:03:00]} 10. O-O {[%clk 0:02:59]}  Qc7 {[%clk 0:03:00]} 11. Rc1 {[%clk 0:02:50]}  b6 {[%clk 0:03:00]} 12. Bf4 {[%clk 0:02:48]}  e5 {[%clk 0:02:49]} 13. Bg3 {[%clk 0:02:48]}  Qe7 {[%clk 0:02:46]} 14. d5 {[%clk 0:02:40]}  Na5 {[%clk 0:02:46]} 15. Bd3 {[%clk 0:02:40]}  Nb7 {[%clk 0:02:42]} 16. Qd2 {[%clk 0:02:39]}  Nd6 {[%clk 0:02:41]} 17. c4 {[%clk 0:02:39]}  f5 {[%clk 0:02:35]} 18. exf5 {[%clk 0:02:34]}  gxf5 {[%clk 0:02:34]} 19. f3 {[%clk 0:02:25]}  Bd7 {[%clk 0:02:30]} 20. Rce1 {[%clk 0:02:21]}  Rae8 {[%clk 0:02:27]} 21. Nc3 {[%clk 0:02:04]}  Qf6 {[%clk 0:02:23]} 22. Nd1 {[%clk 0:01:51]}  Bh6 {[%clk 0:01:50]} 23. Qf2 {[%clk 0:01:48]}  f4 {[%clk 0:01:38]} 24. Bh4 {[%clk 0:01:48]}  Bg5 {[%clk 0:01:38]} 25. Bxg5 {[%clk 0:01:48]}  Qxg5 {[%clk 0:01:39]} 26. Nc3 {[%clk 0:01:48]}  Bf5 {[%clk 0:01:32]} 27. Qd2 {[%clk 0:01:18]}  Qg6 {[%clk 0:01:20]} 28. Ne4 {[%clk 0:01:03]}  Bxe4 {[%clk 0:01:05]} 29. Bxe4 {[%clk 0:01:02]}  Qf6 {[%clk 0:01:05]} 30. Bc2 {[%clk 0:00:56]}  Re7 {[%clk 0:01:00]} 31. Qd3 {[%clk 0:00:54]}  a6 {[%clk 0:00:56]} 32. a4 {[%clk 0:00:52]}  Rb8 {[%clk 0:00:52]} 33. Rb1 {[%clk 0:00:48]}  e4 {[%clk 0:00:48]} 34. fxe4 {[%clk 0:00:48]}  Rxe4 {[%clk 0:00:48]} 35. Qh3 {[%clk 0:00:40]}  Re7 {[%clk 0:00:34]} 36. Qg4+ {[%clk 0:00:39]}  Rg7 {[%clk 0:00:30]} 37. Qxf4 {[%clk 0:00:39]}  Qxf4 {[%clk 0:00:28]} 38. Rxf4 {[%clk 0:00:39]}  b5 {[%clk 0:00:28]} 39. axb5 {[%clk 0:00:34]}  axb5 {[%clk 0:00:28]} 40. cxb5 {[%clk 0:00:34]}  Rxb5 {[%clk 0:00:28]} 41. Rbf1 {[%clk 0:00:28]}  Rb8 {[%clk 0:00:23]} 42. Rf6 {[%clk 0:00:28]}  Rd8 {[%clk 0:00:22]} 43. Re1 {[%clk 0:00:21]}  Rf7 {[%clk 0:00:20]} 44. Rh6 {[%clk 0:00:18]}  Nf5 {[%clk 0:00:18]} 45. Rh5 {[%clk 0:00:16]}  Ng7 {[%clk 0:00:18]} 46. Rg5 {[%clk 0:00:16]}  h6 {[%clk 0:00:19]} 47. Rge5 {[%clk 0:00:15]}  c4 {[%clk 0:00:17]} 48. R5e4 {[%clk 0:00:14]}  Rxd5 {[%clk 0:00:16]} 49. Rxc4 {[%clk 0:00:14]}  Rd2 {[%clk 0:00:16]} 50. Rc8+ {[%clk 0:00:14]}  Rf8 {[%clk 0:00:15]} 51. Bb3+ {[%clk 0:00:14]} 1-0


[Site "https://www.chess.com"]

[Event "Titled Tuesday Blitz May 11 2021"]
[White "Jacobson, Brandon"]
[Black "Sethuraman, S.P."]
[WhiteFideId "30901561"]
[BlackFideId "5021596"]
[WhiteElo "2362"]
[BlackElo "2477"]
[Result "1-0"]
[Round "04"]
[TimeControl "180+1"]
[Date "2021.05.11"]
[WhiteClock "0:00:19"]
[BlackClock "0:00:06"]

1. d4 {[%clk 0:03:00]}  d5 {[%clk 0:02:59]} 2. c4 {[%clk 0:03:01]}  c6 {[%clk 0:03:00]} 3. cxd5 {[%clk 0:03:01]}  cxd5 {[%clk 0:03:00]} 4. Nc3 {[%clk 0:03:02]}  Nf6 {[%clk 0:02:59]} 5. Bf4 {[%clk 0:03:03]}  Nc6 {[%clk 0:02:58]} 6. e3 {[%clk 0:03:04]}  a6 {[%clk 0:02:55]} 7. Be2 {[%clk 0:03:04]}  Ne4 {[%clk 0:02:55]} 8. Nf3 {[%clk 0:03:02]}  Nxc3 {[%clk 0:02:44]} 9. bxc3 {[%clk 0:03:03]}  e6 {[%clk 0:02:45]} 10. O-O {[%clk 0:03:02]}  Bd6 {[%clk 0:02:45]} 11. Bxd6 {[%clk 0:03:01]}  Qxd6 {[%clk 0:02:45]} 12. c4 {[%clk 0:02:48]}  dxc4 {[%clk 0:02:45]} 13. Bxc4 {[%clk 0:02:49]}  O-O {[%clk 0:02:45]} 14. Bd3 {[%clk 0:02:49]}  h6 {[%clk 0:02:30]} 15. Rc1 {[%clk 0:02:43]}  Bd7 {[%clk 0:02:29]} 16. Qb3 {[%clk 0:02:42]}  Qb4 {[%clk 0:02:12]} 17. Qc2 {[%clk 0:02:31]}  Qd6 {[%clk 0:02:04]} 18. Rb1 {[%clk 0:02:27]}  Nb4 {[%clk 0:01:59]} 19. Bh7+ {[%clk 0:02:08]}  Kh8 {[%clk 0:01:59]} 20. Qd2 {[%clk 0:02:09]}  Bb5 {[%clk 0:01:43]} 21. Rfc1 {[%clk 0:01:57]}  Nxa2 {[%clk 0:01:39]} 22. Qxa2 {[%clk 0:01:39]}  Kxh7 {[%clk 0:01:39]} 23. Ne5 {[%clk 0:01:37]}  Kg8 {[%clk 0:01:36]} 24. Rc5 {[%clk 0:01:25]}  Rfc8 {[%clk 0:01:25]} 25. Rbc1 {[%clk 0:01:25]}  Rxc5 {[%clk 0:01:23]} 26. Rxc5 {[%clk 0:01:26]}  Rd8 {[%clk 0:01:18]} 27. Qc2 {[%clk 0:01:21]}  Be8 {[%clk 0:01:07]} 28. h3 {[%clk 0:01:14]}  b6 {[%clk 0:01:04]} 29. Rc7 {[%clk 0:01:14]}  a5 {[%clk 0:01:00]} 30. Ra7 {[%clk 0:01:07]}  a4 {[%clk 0:00:58]} 31. Qe4 {[%clk 0:00:56]}  Qd5 {[%clk 0:00:48]} 32. Qf4 {[%clk 0:00:55]}  f6 {[%clk 0:00:31]} 33. Ng4 {[%clk 0:00:25]}  Qd6 {[%clk 0:00:20]} 34. Nxf6+ {[%clk 0:00:20]}  Kh8 {[%clk 0:00:16]} 35. Qxd6 {[%clk 0:00:19]}  Rxd6 {[%clk 0:00:15]} 36. Nxe8 {[%clk 0:00:20]}  Rd8 {[%clk 0:00:10]} 37. Nc7 {[%clk 0:00:20]}  Rc8 {[%clk 0:00:06]} 38. Nxe6 {[%clk 0:00:19]}  b5 {[%clk 0:00:06]} 39. Nc5 {[%clk 0:00:19]} 1-0


[Site "https://www.chess.com"]

[Event "Titled Tuesday Blitz May 11 2021"]
[White "Janaszak, Dawid"]
[Black "Visakh N R"]
[WhiteFideId "1119206"]
[BlackFideId "25012223"]
[WhiteElo "2332"]
[BlackElo "2428"]
[Result "0-1"]
[Round "04"]
[TimeControl "180+1"]
[Date "2021.05.11"]
[WhiteClock "0:00:04"]
[BlackClock "0:00:06"]

1. e4 {[%clk 0:03:00]}  c5 {[%clk 0:02:53]} 2. Nc3 {[%clk 0:03:00]}  e6 {[%clk 0:02:47]} 3. f4 {[%clk 0:02:58]}  d5 {[%clk 0:02:47]} 4. Nf3 {[%clk 0:02:53]}  Nc6 {[%clk 0:02:46]} 5. Bb5 {[%clk 0:02:53]}  Ne7 {[%clk 0:02:46]} 6. Ne5 {[%clk 0:02:50]}  Bd7 {[%clk 0:02:33]} 7. Nxd7 {[%clk 0:02:46]}  Qxd7 {[%clk 0:02:33]} 8. O-O {[%clk 0:02:40]}  dxe4 {[%clk 0:02:30]} 9. Nxe4 {[%clk 0:02:38]}  Qd4+ {[%clk 0:02:29]} 10. Nf2 {[%clk 0:02:37]}  Qxf4 {[%clk 0:02:29]} 11. d3 {[%clk 0:02:17]}  Qd4 {[%clk 0:02:27]} 12. Qf3 {[%clk 0:02:08]}  a6 {[%clk 0:02:15]} 13. c3 {[%clk 0:01:44]}  Qd7 {[%clk 0:02:05]} 14. Ne4 {[%clk 0:01:36]}  Ng6 {[%clk 0:01:25]} 15. Bxc6 {[%clk 0:01:28]}  bxc6 {[%clk 0:01:25]} 16. Be3 {[%clk 0:01:11]}  f5 {[%clk 0:00:57]} 17. Nxc5 {[%clk 0:01:09]}  Bxc5 {[%clk 0:00:57]} 18. Bxc5 {[%clk 0:01:10]}  Kf7 {[%clk 0:00:56]} 19. d4 {[%clk 0:01:08]}  Rhe8 {[%clk 0:00:55]} 20. Rae1 {[%clk 0:01:07]}  Kg8 {[%clk 0:00:54]} 21. b4 {[%clk 0:01:03]}  Qd5 {[%clk 0:00:53]} 22. Qxd5 {[%clk 0:00:57]}  cxd5 {[%clk 0:00:53]} 23. a4 {[%clk 0:00:57]}  Nf8 {[%clk 0:00:48]} 24. a5 {[%clk 0:00:55]}  Nd7 {[%clk 0:00:47]} 25. Rf2 {[%clk 0:00:46]}  Nf6 {[%clk 0:00:47]} 26. Rf3 {[%clk 0:00:40]}  Ne4 {[%clk 0:00:46]} 27. h3 {[%clk 0:00:31]}  g6 {[%clk 0:00:44]} 28. Kh2 {[%clk 0:00:31]}  Rac8 {[%clk 0:00:43]} 29. Ree3 {[%clk 0:00:31]}  e5 {[%clk 0:00:41]} 30. dxe5 {[%clk 0:00:27]}  Nxc5 {[%clk 0:00:40]} 31. bxc5 {[%clk 0:00:26]}  Rxc5 {[%clk 0:00:41]} 32. Rf4 {[%clk 0:00:24]}  Rxa5 {[%clk 0:00:29]} 33. Rb4 {[%clk 0:00:24]}  Rb5 {[%clk 0:00:28]} 34. Ra4 {[%clk 0:00:24]}  a5 {[%clk 0:00:28]} 35. Kg3 {[%clk 0:00:23]}  g5 {[%clk 0:00:21]} 36. Kf3 {[%clk 0:00:23]}  Rc5 {[%clk 0:00:21]} 37. g3 {[%clk 0:00:20]}  Kf7 {[%clk 0:00:19]} 38. Ra3 {[%clk 0:00:18]}  h5 {[%clk 0:00:18]} 39. Rb3 {[%clk 0:00:18]}  Re7 {[%clk 0:00:16]} 40. Rb6 {[%clk 0:00:18]}  Re6 {[%clk 0:00:13]} 41. Rb7+ {[%clk 0:00:18]}  Kg6 {[%clk 0:00:13]} 42. Rb8 {[%clk 0:00:16]}  g4+ {[%clk 0:00:12]} 43. hxg4 {[%clk 0:00:16]}  fxg4+ {[%clk 0:00:11]} 44. Ke2 {[%clk 0:00:16]}  Rc4 {[%clk 0:00:11]} 45. Ra8 {[%clk 0:00:14]}  Re4 {[%clk 0:00:10]} 46. Rxa5 {[%clk 0:00:12]}  R6xe5 {[%clk 0:00:09]} 47. Rxe4 {[%clk 0:00:13]}  Rxe4+ {[%clk 0:00:09]} 48. Kd3 {[%clk 0:00:12]}  Re1 {[%clk 0:00:09]} 49. Kd4 {[%clk 0:00:09]}  Rg1 {[%clk 0:00:08]} 50. Kxd5 {[%clk 0:00:08]}  Rxg3 {[%clk 0:00:08]} 51. c4 {[%clk 0:00:09]}  Kg5 {[%clk 0:00:07]} 52. Kd6+ {[%clk 0:00:08]}  Kh4 {[%clk 0:00:07]} 53. c5 {[%clk 0:00:09]}  Rd3+ {[%clk 0:00:07]} 54. Ke5 {[%clk 0:00:08]}  g3 {[%clk 0:00:07]} 55. c6 {[%clk 0:00:08]}  Rc3 {[%clk 0:00:07]} 56. Ra4+ {[%clk 0:00:07]}  Kh3 {[%clk 0:00:07]} 57. Kd5 {[%clk 0:00:08]}  g2 {[%clk 0:00:06]} 58. Ra1 {[%clk 0:00:04]}  Kh2 {[%clk 0:00:06]} 0-1


[Site "https://www.chess.com"]